[Event "SixDays Budapest March IM 2023"]
[Site "Budapest"]
[Date "2023.03.26"]
[Round "4.1"]
[White "Pham, Tran Gia Phuc"]
[Black "Ulasevich, Sergei"]
[Result "1-0"]
[ECO "D02"]
[WhiteElo "2238"]
[BlackElo "2236"]
[Annotator "TA"]
[PlyCount "85"]
[EventDate "2023.03.24"]
[EventType "tourn"]
[EventCountry "HUN"]
[SourceTitle "playchess.com"]
[Source "ChessBase"]
[SourceQuality "1"]
[TimeControl "5400+30"]

{[%evp 9,85,1,0,-1,0,-4,36,27,24,32,29,27,32,18,22,18,18,19,27,39,27,0,0,0,0,0,6,10,8,4,8,0,5,8,33,33,56,45,64,24,53,55,285,279,275,265,304,302,431,418,416,339,329,308,293,294,298,295,287,250,304,295,387,387,357,317,493,493,480,480,727,724,1118,893,1281,1113,677,653]} 1. d4 {[%emt 0:00:42]} Nf6 {[%emt 0:00:38]} 2. Bf4 {[%emt 0:00:22]} d5 {[%emt 0:00:40]} 3. Nf3 {[%emt 0:00:09]} c5 {[%emt 0:00:25]} 4. e3 {[%emt 0:00:07]} Nc6 {[%emt 0:00:06]} 5. Nbd2 {[%emt 0:00:05]} Qb6 {[%emt 0:00:50][%csl LRb2,LRd4][%cal Rc5d4]} 6. dxc5 {[%emt 0:00:06] D02: 1 d4 d5 2 Nf3 sidelines, including 2...Nf6 3 g3 and 2...Nf6 3 Bf4.} Qxb2 {[%emt 0:00:05]} 7. Rb1 {[%emt 0:00:05]} Qa3 {[%emt 0:00:08]} 8. Bb5 {[%emt 0:00:12] White is slightly better.} g6 {[%emt 0:00:13]} 9. Ne5 {[%emt 0:03:12]} Qxc5 {[%emt 0:00:26]} 10. c4 {[%emt 0:00:17]} Bg7 $1 {[%emt 0:01:03]} 11. Qa4 {[%emt 0:00:57][%cal Rb5c6]} dxc4 $1 {[%emt 0:01:13]} 12. Bxc4 {[%emt 0:01:22] Hoping for Rb5.} a6 {[%emt 0:00:12] [#] Repels Rb5} 13. Nb3 $146 {[%emt 0:03:27]} (13. Nxf7 b5 $15) ({Predecessor:} 13. Bxf7+ Kf8 14. Nxc6 Qxc6 15. Qxc6 bxc6 16. Bc4 Nd5 17. Bg3 Be6 18. e4 Nc3 19. Bxe6 Nxb1 20. Nxb1 {1-0 Hauchard,A (2515)-Sarana,A (2649) Cappelle Online Blitz op 2021 (11)}) 13... Qb6 {[%emt 0:03:34]} (13... Qb4+ {simplifies} 14. Qxb4 Nxb4 15. Bxf7+ Kf8) 14. Bxf7+ {[%emt 0:06:51]} Kf8 {[%emt 0:00:06]} 15. Nxc6 {[%emt 0:11:20] Ne5 is the strong threat.} (15. Nd2 $5 {[%cal Rb1b6]} Qc5 16. Nxc6 $14) 15... Bd7 $1 {[%emt 0:00:15][%cal Bc8d7,Bd7c6,Bc6g2][%mdl 96] [#] Pin} 16. Be6 {[%emt 0:01:01] Black must now prevent Bxd7.} Bxc6 {[%emt 0:04:04]} 17. Qd4 {[%emt 0:00:47]} Qxd4 {[%emt 0:04:31]} 18. Nxd4 {[%emt 0:00:07]} Bxg2 {[%emt 0:03:57]} 19. Rg1 {[%emt 0:00:06][%cal Bh1g1,Bg1g4,Bg4e4][%mdl 32]} Be4 {[%emt 0:06:39]} 20. Rc1 {[%emt 0:05:17]} Nd5 $132 {[%emt 0:12:37][%mdl 2048] ...Nxf4 would be deadly. Black is not holding back} 21. Rg4 {[%emt 0:05:44] aiming for Bg5.} h5 {[%emt 0:16:45] [#]} 22. Bb8 $1 {[%emt 0:06:46][%cal Rc1c8]} Bxd4 {[%emt 0:14:59]} 23. Rxe4 {[%emt 0:00:08]} Bf6 {[%emt 0:00:31]} 24. Bg3 {[%emt 0:01:18] White is more active.} h4 {[%emt 0:04:02]} 25. Be5 {[%emt 0:00:05] A strong pair of Bishops.} (25. Bxd5 hxg3 26. hxg3 (26. Bxb7 $2 gxh2 27. Rec4 h1=Q+ $19) 26... Rd8 $11) 25... Rh5 $2 {[%emt 0:01:22] This costs Black the game.} (25... Bxe5 $14 26. Rxe5 Nb4) 26. f4 $18 {[%emt 0:00:10]} ({Weaker is} 26. Bxd5 Rxe5 27. Rxe5 (27. Bxb7 Rb8 $11) 27... Bxe5 $11) 26... Bxe5 {[%emt 0:08:50]} 27. fxe5 {[%emt 0:00:06]} Nb6 {[%emt 0:04:19]} 28. Rb1 {[%emt 0:01:02]} Nc8 {[%emt 0:01:00]} (28... Na4 {keeps fighting.}) 29. Rxb7 {[%emt 0:00:07]} Kg7 {[%emt 0:01:43]} 30. Rc4 {[%emt 0:01:06]} Rxe5 {[%emt 0:04:01]} 31. Rxc8 {[%emt 0:00:39]} Rxc8 {[%emt 0:00:40]} 32. Bxc8 {[%emt 0:00:09]} Rxe3+ {[%emt 0:00:01][%mdl 4096] Endgame KRB-KR} 33. Kd2 {[%emt 0:00:37]} Re5 {[%emt 0:00:27]} 34. a4 {[%emt 0:01:44]} Rc5 {[%emt 0:00:59]} 35. Be6 {[%emt 0:00:12]} ({Less strong is} 35. Rxe7+ Kf8 36. Rh7 Kg8 $11) 35... Kf6 {[%emt 0:00:43]} 36. Rb6 {[%emt 0:00:07]} a5 {[%emt 0:00:24]} 37. Bb3+ {[%emt 0:00:16]} Ke5 {[%emt 0:01:12]} (37... Kg7 $142 38. Re6 Rg5) 38. Rxg6 {[%emt 0:00:30] Strongly threatening Rg5+. White is clearly winning.} Kf4 {[%emt 0:00:12] Prevents Rg5} 39. h3 {[%emt 0:00:07]} e5 {[%emt 0:00:54]} (39... Rf5 $142 40. Rg4+ Kf3 41. Rxh4 Re5) 40. Rg4+ {[%emt 0:01:05]} Kf3 {[%emt 0:00:05]} 41. Kd3 {[%emt 0:00:53]} Rc7 {[%emt 0:00:26]} 42. Bd5+ {[%emt 0:00:43]} Kf2 {[%emt 0:00:07]} 43. Rxh4 {[%emt 0:00:04] Excellently played by Pham!   Weighted Error Value: White=0.07 (flawless) /Black=0.27 (precise)} 1-0

[Event "SixDays Budapest March IM 2023"]
[Site "Budapest"]
[Date "2023.03.26"]
[Round "4.2"]
[White "Gandhi, Anish"]
[Black "Udvardi, Zalan"]
[Result "1-0"]
[ECO "D02"]
[WhiteElo "2187"]
[BlackElo "2260"]
[Annotator "TA"]
[PlyCount "69"]
[EventDate "2023.03.24"]
[EventType "tourn"]
[EventCountry "HUN"]
[SourceTitle "playchess.com"]
[Source "ChessBase"]
[SourceQuality "1"]
[TimeControl "5400+30"]

{[%evp 9,69,2,16,-4,18,4,15,11,54,4,47,17,49,27,53,31,42,42,45,45,48,37,32,39,42,41,52,52,59,58,68,62,65,65,69,71,107,123,160,145,191,195,192,195,237,222,279,273,358,350,469,437,413,431,899,1011,989,539,29980,29981,29981,29982]} 1. d4 {[%emt 0:00:36]} Nf6 {[%emt 0:11:52]} 2. Nf3 d5 {[%emt 0:00:12]} 3. Bf4 {[%emt 0:00:15]} c5 {[%emt 0:00:26]} 4. e3 {[%emt 0:00:06]} e6 {[%emt 0:00:24]} 5. c3 {[%emt 0:00:45]} Bd6 {[%emt 0:00:07]} 6. Nbd2 {[%emt 0:01:39] D02: 1 d4 d5 2 Nf3 sidelines, including 2...Nf6 3 g3 and 2...Nf6 3 Bf4.} Bxf4 {[%emt 0:17:44]} 7. exf4 {[%emt 0:00:34]} Qd6 {[%emt 0:01:22]} 8. g3 {[%emt 0:01:09] The position is equal.} Nc6 {[%emt 0:06:04] [#]} 9. a3 $146 {[%emt 0:01:16]} (9. dxc5 $14 Qxc5 10. Bd3) ({Predecessor:} 9. dxc5 Qxc5 10. Bd3 O-O 11. O-O Re8 12. Ne5 Nxe5 13. fxe5 Nd7 14. Qe2 Qb6 15. Nf3 {1-0 Hamitevici,V (2519)-Makolli,P (2333) EU-chT (Men) 21st 2017 (9.2)}) 9... Bd7 {[%emt 0:06:32]} 10. Bd3 {[%emt 0:00:52]} Rb8 {[%emt 0:04:38]} 11. O-O {[%emt 0:01:54]} O-O {[%emt 0:08:42]} 12. Qe2 {[%emt 0:02:49]} Rfc8 13. dxc5 {[%emt 0:01:51]} Qxc5 {[%emt 0:09:01]} 14. Nb3 {[%emt 0:00:08]} Qb6 {[%emt 0:05:45]} 15. Nbd4 {[%emt 0:00:27]} Nxd4 {[%emt 0:00:39]} 16. Nxd4 {[%emt 0:00:22]} Re8 {[%emt 0:05:14]} 17. Rfe1 {[%emt 0:03:42][%cal Bf1e1,Be1e5,Be5e2][%mdl 32]} Qc5 {[%emt 0:00:19]} 18. Qf3 {[%emt 0:03:56]} Qd6 {[%emt 0:01:08]} 19. Re5 {[%emt 0:02:11]} Bc6 {[%emt 0:01:45]} 20. Rae1 {[%emt 0:01:44] White is much more active.} g6 {[%emt 0:01:03]} 21. R5e2 {[%emt 0:01:40]} b5 {[%emt 0:01:50]} 22. Qe3 {[%emt 0:11:53] And now Qe5 would win.} Nd7 {[%emt 0:00:24] Dodges Qe5} 23. h4 {[%emt 0:02:06][%cal Bh2h4,Bh4h5][%mdl 32]} a6 {[%emt 0:02:23] [#]} 24. h5 $1 {[%emt 0:01:56]} Ba8 {[%emt 0:00:03]} (24... Bb7 $16 {was called for.} 25. Kg2 Qf8) 25. Bc2 $18 {[%emt 0:15:58][%cal Bd3c2,Bc2g6,Bg6f7][%mdl 32]} Nf6 {[%emt 0:01:39]} 26. hxg6 {[%emt 0:02:53]} hxg6 {[%emt 0:00:41]} 27. f3 {[%emt 0:00:03]} Kg7 {[%emt 0:02:45]} 28. Qd3 {[%emt 0:02:40]} Kf8 {[%emt 0:05:34]} 29. Qd2 {[%emt 0:14:50]} Nd7 {[%emt 0:01:58] [#]} 30. Bxg6 $1 {[%emt 0:02:12][%mdl 576] Deflection} e5 {[%emt 0:00:28][%cal Oe5d4]} 31. Bxf7 {[%emt 0:00:28]} Re7 {[%emt 0:00:59]} (31... Kxf7 $142 32. fxe5 Nxe5 33. Qf4+ Qf6) 32. fxe5 {[%emt 0:03:21]} Nxe5 {[%emt 0:00:06]} 33. Qf4 {[%emt 0:05:48] Intending Ne6+ and mate.} Nxf3+ {[%emt 0:00:26]} 34. Qxf3 {[%emt 0:00:12]} Rxf7 {[%emt 0:00:03] Black is weak on the dark squares} 35. Qg4 {[%emt 0:00:08] Weighted Error Value: White=0.39/Black=0.51} 1-0

[Event "SixDays Budapest March IM 2023"]
[Site "Budapest"]
[Date "2023.03.26"]
[Round "4.3"]
[White "Halak, Miklos"]
[Black "Szeberenyi, Adam"]
[Result "1/2-1/2"]
[ECO "C77"]
[WhiteElo "2257"]
[BlackElo "2338"]
[Annotator "TA"]
[PlyCount "41"]
[EventDate "2023.03.24"]
[EventType "tourn"]
[EventCountry "HUN"]
[SourceTitle "playchess.com"]
[Source "ChessBase"]
[SourceQuality "1"]
[TimeControl "5400+30"]

{[%evp 22,25,9,5,15,18]} 1. e4 e5 2. Nf3 Nc6 3. Bb5 {[%cal Bf1b5,Bb5a4,Ba4b3][%mdl 32]} a6 4. Ba4 Nf6 5. d3 b5 6. Bb3 Be7 7. O-O O-O 8. Re1 Re8 9. Nbd2 d6 10. h3 Na5 11. c3 c5 12. Bc2 Nc6 {C96: Closed Ruy Lopez: Chigorin Defence: 11 d4, replies other than 11...Qc7.} 13. a4 $1 {[%mdl 4] [#] A rather calm draw.  now scores much better than the old 13.Nf1.} {Predecessor:} b4 $146 14. Nc4 Be6 15. Bb3 h6 16. Ne3 Rb8 17. Bc4 Qc8 18. Nd5 Bxd5 19. Bxd5 bxc3 20. bxc3 Nxd5 21. exd5 {1-0 Van Foreest,J (2678)-Topalov,V (2728) Zagreb SuperUnited Rapid 2022 (7)} 1/2-1/2

[Event "SixDays Budapest March IM 2023"]
[Site "Budapest"]
[Date "2023.03.26"]
[Round "4.4"]
[White "Balogh, Peter"]
[Black "Neszmenyi, Zoltan"]
[Result "1/2-1/2"]
[ECO "C45"]
[WhiteElo "2264"]
[BlackElo "1885"]
[Annotator "TA"]
[PlyCount "45"]
[EventDate "2023.03.24"]
[EventType "tourn"]
[EventCountry "HUN"]
[SourceTitle "playchess.com"]
[Source "ChessBase"]
[SourceQuality "1"]
[TimeControl "5400+30"]

{[%evp 15,45,33,54,51,92,70,82,81,89,70,70,69,75,44,83,50,55,46,42,49,51,39,47,54,43,30,64,58,71,50,58,-77]} 1. e4 {[%emt 0:00:40]} e5 {[%emt 0:00:38]} 2. Nf3 {[%emt 0:00:37]} Nc6 {[%emt 0:00:11]} 3. d4 {[%emt 0:00:35]} exd4 {[%emt 0:00:23]} 4. Nxd4 {[%emt 0:00:15]} Bc5 {[%emt 0:00:10]} 5. Nb3 {[%emt 0:00:15]} Bb6 {[%emt 0:00:26]} 6. Qe2 {[%emt 0:01:22]} Qf6 {[%emt 0:02:50]} 7. Nc3 {[%emt 0:05:28]} Nge7 {[%emt 0:00:34]} 8. Be3 {[%emt 0:04:38]} O-O {[%emt 0:03:22] 8...d6 gains popularity.} 9. O-O-O {[%emt 0:00:12] C45: Scotch Game.} Re8 {[%emt 0:08:57]} 10. Kb1 {[%emt 0:07:27]} Bxe3 {[%emt 0:08:48]} 11. Qxe3 {[%emt 0:00:15] White is better.} a6 {[%emt 0:03:39] Wards off Nb5} 12. f4 {[%emt 0:02:10]} d6 {[%emt 0:00:45] [#]} 13. Be2 $146 {[%emt 0:06:09]} ({Predecessor:} 13. Bd3 b5 14. Qf3 Be6 15. g4 Bxb3 16. axb3 Nd4 17. Qg3 c5 18. h4 b4 19. g5 {1-0 Kokoszczynski,J (2277)-Klyashtorny,V (2403) Titled Tuesday intern op 26th Oct blitz 2021 (7)}) 13... b5 {[%emt 0:02:18]} 14. Qd2 {[%emt 0:05:06]} Rb8 {[%emt 0:09:03]} 15. g4 {[%emt 0:04:16][%cal Bg2g4,Bg4g5][%mdl 32] Black must now prevent g5.} b4 {[%emt 0:03:47]} 16. Nd5 {[%emt 0:03:30]} Nxd5 {[%emt 0:00:36]} 17. exd5 {[%emt 0:00:20]} Ne7 {[%emt 0:03:44][%cal Oe7d5]} 18. g5 {[%emt 0:02:45]} Qf5 {[%emt 0:03:20][%cal Of5d5]} 19. Rhe1 {[%emt 0:07:58]} Bb7 {[%emt 0:13:43]} 20. Bd3 {[%emt 0:11:55]} ({Of course not} 20. Qxb4 Nxd5 21. Qa5 Qxf4 22. Rxd5 Bxd5 23. Qxd5 Qxh2 $15) 20... Qxd5 {[%emt 0:05:15]} 21. Qxb4 {[%emt 0:01:21][%cal Oe1e7] [#] Rxe7! is the strong threat.} Qg2 {[%emt 0:04:58]} 22. Qa5 {[%emt 0:14:44] White has more active pieces.} (22. Bxa6 $5 Bf3 23. Qd2 $14) 22... Nd5 {[%emt 0:05:42]} 23. Rg1 {[%emt 0:03:57] Weighted Error Value: White=0.12 (very precise) /Black=0.10 (very precise)} (23. Bc4 $14 {keeps the upper hand.} Rxe1 24. Rxe1) 1/2-1/2

[Event "SixDays Budapest March IM 2023"]
[Site "Budapest"]
[Date "2023.03.26"]
[Round "4.5"]
[White "To, Nhat Minh"]
[Black "Horvath, David"]
[Result "1/2-1/2"]
[ECO "D56"]
[WhiteElo "2342"]
[BlackElo "2380"]
[Annotator "TA"]
[PlyCount "39"]
[EventDate "2023.03.24"]
[EventType "tourn"]
[EventCountry "HUN"]
[SourceTitle "playchess.com"]
[Source "ChessBase"]
[SourceQuality "1"]
[TimeControl "5400+30"]

{[%evp 21,22,22,33]} 1. c4 {[%emt 0:00:32] Adhiban,Baskaran} e6 {[%emt 0:00:37]} 2. Nf3 {[%emt 0:00:06]} Nf6 {[%emt 0:00:07]} 3. Nc3 {[%emt 0:00:12]} d5 {[%emt 0:00:09]} 4. d4 {[%emt 0:00:12]} Be7 {[%emt 0:00:06]} 5. Bg5 {[%emt 0:00:10]} O-O {[%emt 0:00:11]} 6. e3 {[%emt 0:00:04]} h6 {[%emt 0:00:19]} 7. Bh4 {[%emt 0:00:06]} Nbd7 {[%emt 0:00:17]} 8. Rc1 {[%emt 0:00:17]} b6 {[%emt 0:00:21]} 9. cxd5 {[%emt 0:00:09]} exd5 {[%emt 0:00:07]} 10. Bd3 {[%emt 0:00:14]} Bb7 {[%emt 0:00:07]} 11. O-O {[%emt 0:00:07]} c5 {[%emt 0:00:07] [#]} {Predecessor:} 12. Bf5 $146 {D58: Queen's Gambit Declined: Tartakower Defence.} c4 13. b3 g6 14. Bb1 Rc8 15. bxc4 Rxc4 16. Bd3 Rc8 17. Qb3 a6 18. a4 Bd6 19. Rc2 Re8 20. Rfc1 {1-0 Adhiban,B (2659)-Jumabayev,R (2654) Asia Nations online Cup final rapid 2020 (3.1)} 1/2-1/2

[Event "SixDays Budapest March IM 2023"]
[Site "Budapest"]
[Date "2023.03.27"]
[Round "5.1"]
[White "Horvath, David"]
[Black "Pham, Tran Gia Phuc"]
[Result "1/2-1/2"]
[ECO "E10"]
[WhiteElo "2380"]
[BlackElo "2238"]
[Annotator "TA"]
[PlyCount "119"]
[EventDate "2023.03.24"]
[EventType "tourn"]
[EventCountry "HUN"]
[SourceTitle "playchess.com"]
[Source "ChessBase"]
[SourceQuality "1"]
[TimeControl "5400+30"]

{[%evp 20,119,33,22,25,25,28,28,29,10,38,16,48,44,43,0,0,-15,-12,-6,-8,-5,-16,-12,-15,-6,56,-24,-4,-33,0,0,0,0,0,0,107,0,0,-6,-27,-39,-31,-67,0,0,0,0,0,-10,0,0,0,0,0,-18,-22,-28,-22,-20,-14,-26,-14,-14,0,0,0,0,0,0,0,0,0,0,0,0,49,49,49,51,94,60,60,56,56,56,74,74,74,56,176,172,303,265,225,8,8,8,8,0,0,0]} 1. d4 {[%emt 0:00:34]} Nf6 {[%emt 0:00:43]} 2. c4 {[%emt 0:00:06]} e6 {[%emt 0:00:14]} 3. Nf3 {[%emt 0:00:31]} c5 {[%emt 0:00:36]} 4. e3 {[%emt 0:11:40]} d5 {[%emt 0:00:11]} 5. Nc3 {[%emt 0:00:29]} Nc6 {[%emt 0:00:06]} 6. a3 {[%emt 0:09:15]} a6 {[%emt 0:00:05]} 7. dxc5 {[%emt 0:07:34]} Bxc5 {[%emt 0:00:27]} 8. b4 {[%emt 0:00:10]} Bd6 {[%emt 0:00:41]} 9. cxd5 {[%emt 0:01:04]} exd5 {[%emt 0:00:06]} 10. Bb2 {[%emt 0:03:58]} O-O {[%emt 0:03:23]} 11. Be2 {[%emt 0:00:06]} h6 {[%emt 0:01:48] D40: Queen's Gambit Declined: Semi-Tarrasch with 5 e3.} 12. O-O {[%emt 0:00:44]} Be6 {[%emt 0:00:05]} 13. Rc1 {[%emt 0:01:18] [#]} Qe7 $146 {[%emt 0:04:57] White has an edge.} ({Predecessor:} 13... Ne4 14. Nxe4 dxe4 15. Nd2 f5 16. Nc4 Be7 17. Qxd8 Raxd8 18. Rfd1 Rxd1+ 19. Rxd1 {½-½ Wallner,D (2082)-Detter,P (2004) AUT-ch Graz 2017 (6)}) 14. Qc2 {[%emt 0:25:03]} Rad8 {[%emt 0:03:18]} 15. Na4 {[%emt 0:08:02]} a5 {[%emt 0:02:54]} 16. b5 {[%emt 0:09:12]} Nb8 {[%emt 0:00:30]} 17. Ra1 {[%emt 0:02:43]} Nbd7 {[%emt 0:02:22]} 18. Bc3 {[%emt 0:01:49]} Ne4 {[%emt 0:00:51]} 19. Bxa5 {[%emt 0:05:01]} Rc8 {[%emt 0:00:46]} 20. Qd1 {[%emt 0:00:37]} Bxa3 {[%emt 0:01:29]} 21. Nd4 {[%emt 0:05:01]} Ra8 {[%emt 0:01:29]} 22. Be1 {[%emt 0:00:35]} Rfc8 {[%emt 0:03:10]} (22... Bd6 $11) 23. Bf3 {[%emt 0:01:22]} (23. f3 $14 Nef6 24. f4) 23... Bd6 $11 {[%emt 0:02:11]} 24. Nc3 {[%emt 0:00:54]} Ndf6 {[%emt 0:09:19]} (24... Qh4 25. g3 Nxc3 26. Rxa8 (26. gxh4 Nxd1 27. Rxd1 Nf6 $17) 26... Rxa8 27. Bxc3 $16) 25. Nxe6 {[%emt 0:01:05]} Qxe6 {[%emt 0:00:45]} 26. Rxa8 {[%emt 0:01:08]} Rxa8 {[%emt 0:00:06]} 27. g3 {[%emt 0:00:35]} Be5 {[%emt 0:00:50]} (27... Ra3 $11 {keeps the balance.} 28. Ne2 Be5) 28. Qb3 {[%emt 0:00:46]} (28. Nxd5 $1 $16 Rb8 29. Nxf6+ Bxf6 30. Qd3) 28... Qf5 {[%emt 0:00:36]} 29. Nxe4 {[%emt 0:00:45]} Qxf3 {[%emt 0:00:13]} (29... dxe4 {feels hotter.} 30. Be2 Qh3 31. Bb4 h5) 30. Nxf6+ {[%emt 0:00:55]} Bxf6 {[%emt 0:00:08]} ({Don't play} 30... gxf6 31. Bc3 $11) 31. Qb4 {[%emt 0:01:36]} Qe2 {[%emt 0:00:34]} (31... h5 $15) 32. Bc3 {[%emt 0:00:49]} Bxc3 {[%emt 0:00:49]} 33. Qxc3 {[%emt 0:00:01]} Qxb5 {[%emt 0:00:12][%mdl 4096] Endgame KQR-KQR} 34. Rc1 {[%emt 0:00:15]} Rd8 {[%emt 0:01:58]} 35. Qe5 {[%emt 0:00:31]} Qe8 {[%emt 0:03:04]} 36. Qxe8+ {[%emt 0:00:49]} Rxe8 {[%emt 0:00:06] KR-KR} 37. Rc7 {[%emt 0:00:09]} Rb8 {[%emt 0:00:05]} 38. Rd7 {[%emt 0:00:06]} b5 {[%emt 0:00:04][%cal Bb7b5,Bb5b4,Bb4b3,Bb3b2][%mdl 32] And now ...b4 would win.} 39. Rxd5 {[%emt 0:00:08]} Kf8 {[%emt 0:00:31]} 40. Kf1 {[%emt 0:00:13]} b4 {[%emt 0:02:23]} 41. Ke2 {[%emt 0:00:28]} b3 {[%emt 0:01:12]} 42. Rd1 {[%emt 0:00:07]} Ke7 {[%emt 0:00:45]} (42... b2 $5 43. Rb1 $8 g5 $14) 43. Rb1 {[%emt 0:00:29]} b2 {[%emt 0:00:42]} 44. Kd3 {[%emt 0:01:29]} Kd6 {[%emt 0:01:25]} 45. Kc3 {[%emt 0:00:50]} Kd5 {[%emt 0:00:07] [#] Hoping for ...Ke4.} 46. f3 {[%emt 0:00:07]} (46. Rxb2 $2 {is the wrong capture.} Rxb2 47. Kxb2 Ke4 $19) 46... g5 {[%emt 0:00:05]} 47. h3 {[%emt 0:01:14]} h5 {[%emt 0:00:07]} (47... f5 $11) 48. Rxb2 $14 {[%emt 0:00:10]} Rc8+ {[%emt 0:01:14]} 49. Kd3 {[%emt 0:00:04] aiming for Rb5+.} Ke5 {[%emt 0:00:10]} 50. Rb5+ {[%emt 0:00:43]} Kf6 {[%emt 0:00:06]} 51. f4 {[%emt 0:00:11]} gxf4 {[%emt 0:00:16]} 52. gxf4 {[%emt 0:00:05]} Kg6 {[%emt 0:00:35]} 53. Rg5+ {[%emt 0:00:06]} Kh6 {[%emt 0:00:09]} 54. Ke4 {[%emt 0:00:45]} Rc3 {[%emt 0:00:40]} (54... Re8+ $1 $14 55. Kd4 Rd8+ 56. Rd5 Rg8) 55. h4 $18 {[%emt 0:00:24]} Rc1 {[%emt 0:00:32]} (55... Ra3 {was called for.} 56. Kd4 Ra2) 56. Kf5 {[%emt 0:01:28] Strongly threatening Kf6.} Re1 {[%emt 0:02:58] [#]} 57. e4 {[%emt 0:00:10]} (57. Rg3 $1 $18) 57... Rh1 $11 {[%emt 0:00:04] The position is equal.} 58. Kf6 {[%emt 0:02:18]} Rxh4 {[%emt 0:00:05]} 59. f5 {[%emt 0:00:21]} ({Reject} 59. Kxf7 Rxf4+ 60. Rf5 Rxe4 $17) 59... Rg4 {[%emt 0:00:45]} 60. Rxg4 {[%emt 0:00:46] Weighted Error Value: White=0.18 (very precise) /Black=0.16 (very precise)} 1/2-1/2

[Event "SixDays Budapest March IM 2023"]
[Site "Budapest"]
[Date "2023.03.27"]
[Round "5.2"]
[White "Neszmenyi, Zoltan"]
[Black "To, Nhat Minh"]
[Result "0-1"]
[ECO "D37"]
[WhiteElo "1885"]
[BlackElo "2342"]
[Annotator "TA"]
[PlyCount "92"]
[EventDate "2023.03.24"]
[EventType "tourn"]
[EventCountry "HUN"]
[SourceTitle "playchess.com"]
[Source "ChessBase"]
[SourceQuality "1"]
[TimeControl "5400+30"]

{[%evp 11,92,21,20,11,11,10,18,10,12,9,20,-38,-34,-42,-17,-35,-39,-31,-38,-33,-35,-49,-46,-52,-46,-47,-31,-48,-50,-54,-54,-51,-51,-64,-64,-64,-46,-50,-45,-46,-40,-42,-35,-47,-47,-47,-47,-47,-47,-47,-40,-69,-69,-69,-69,-69,-69,-71,-72,-512,-469,-450,-464,-1088,-1066,-1581,-1531,-2320,-2331,-2116,-2161,-1753,-1717,-2044,-2118,-1788,-1700,-1591,-1383,-2536,-2438,-2545,-2315]} 1. Nf3 {[%emt 0:09:47]} d5 {[%emt 0:00:35]} 2. d4 {[%emt 0:00:04]} Nf6 {[%emt 0:00:04]} 3. c4 {[%emt 0:00:04]} e6 {[%emt 0:00:03]} 4. Nc3 {[%emt 0:00:05]} Nbd7 {[%emt 0:00:04][%cal Bb8d7,Bd7b6,Bb6c4][%mdl 32]} 5. Bf4 {[%emt 0:02:27]} dxc4 {[%emt 0:00:12]} 6. e3 {[%emt 0:01:10]} Nb6 {[%emt 0:00:10] [#] 6...Bd6 is the modern continuation.} 7. Bxc4 $1 {[%emt 0:04:35][%mdl 64] Decoy. D37: Queen's Gambit Declined: 5 Bf4.} Nxc4 {[%emt 0:00:04]} (7... Bd6 8. Ne5) 8. Qa4+ {[%emt 0:00:09]} c6 {[%emt 0:00:02][%cal Bc7c6,Bc6d5][%mdl 32]} 9. Qxc4 {[%emt 0:00:11] The position is equal.} Nd5 {[%emt 0:00:02]} 10. Bg3 {[%emt 0:03:40]} Qb6 {[%emt 0:00:06] [#]} 11. Nxd5 $146 {[%emt 0:12:00]} (11. O-O $11) ({Predecessor:} 11. Qe2 Bb4 12. O-O Nxc3 13. bxc3 Bxc3 14. Rab1 Qd8 15. Rb3 Ba5 16. e4 Bc7 17. Bh4 {1-0 Grischuk,A (2766)-Vitiugov,N (2727) Riga FIDE GP 2019 (1.3)}) 11... cxd5 {[%emt 0:00:08]} 12. Qb3 {[%emt 0:03:40]} Qa6 {[%emt 0:10:02]} 13. a3 {[%emt 0:03:53]} Be7 {[%emt 0:06:57]} 14. Ne5 {[%emt 0:05:38]} Bd7 {[%emt 0:06:13]} 15. Nxd7 {[%emt 0:01:56]} Kxd7 {[%emt 0:00:05]} 16. Rc1 {[%emt 0:02:11]} Rhc8 {[%emt 0:01:04] Repels Rc7+} 17. Kd2 {[%emt 0:01:08]} h5 {[%emt 0:01:34] Really sharp!} 18. h3 {[%emt 0:02:48]} g6 {[%emt 0:01:42]} 19. Qd3 {[%emt 0:06:15]} b5 {[%emt 0:06:15][%cal Bb7b5,Bb5c4][%mdl 32]} 20. Rxc8 {[%emt 0:02:58]} Rxc8 {[%emt 0:00:11]} 21. Rc1 {[%emt 0:01:07]} Rc4 {[%emt 0:00:33]} 22. Rxc4 {[%emt 0:08:53]} bxc4 $15 {[%emt 0:00:12][%mdl 4096] Endgame KQB-KQB} 23. Qc3 {[%emt 0:01:54]} Qb5 {[%emt 0:03:55]} 24. f3 {[%emt 0:05:08]} a5 {[%emt 0:02:01]} 25. Be1 {[%emt 0:01:42]} a4 {[%emt 0:01:00]} 26. Kc1 {[%emt 0:02:30]} f6 {[%emt 0:01:55]} 27. Qa5 {[%emt 0:03:23]} Qxa5 {[%emt 0:00:25]} 28. Bxa5 {[%emt 0:00:07] KB-KB} e5 {[%emt 0:00:51]} 29. Kc2 {[%emt 0:01:48]} exd4 {[%emt 0:00:36]} 30. exd4 {[%emt 0:00:09]} h4 {[%emt 0:04:13]} 31. Kc3 {[%emt 0:02:24]} Bd6 {[%emt 0:00:18]} 32. Bb4 {[%emt 0:00:40]} Bg3 {[%emt 0:00:05] And now ...Be1+ would win.} 33. Kd2 {[%emt 0:02:34] Prevents Be1+.} Ke6 {[%emt 0:00:52]} 34. Ke2 {[%emt 0:01:29]} Kf5 {[%emt 0:01:05]} 35. Bd2 $2 {[%emt 0:03:33][%mdl 8192] [#] This costs White the game.} (35. Ba5 $17) 35... Bf4 $1 $19 {[%emt 0:00:59] White must now prevent ...Bxd2. Black is clearly winning.} 36. Be1 {[%emt 0:00:46]} Bc1 {[%emt 0:00:08]} 37. Bc3 {[%emt 0:01:29]} (37. Bxh4 $142 Bxb2 38. Bf2) 37... Kf4 {[%emt 0:00:11]} 38. Kf2 {[%emt 0:01:34]} g5 {[%emt 0:00:52]} 39. Ke2 {[%emt 0:01:36]} Kg3 {[%emt 0:01:33]} 40. Kf1 {[%emt 0:00:10]} Kh2 {[%emt 0:00:29]} 41. Kf2 {[%emt 0:01:10]} Kh1 {[%emt 0:01:15]} 42. Kf1 {[%emt 0:01:56]} Be3 {[%emt 0:00:21]} 43. Ke2 {[%emt 0:00:39]} Bg1 {[%emt 0:00:07]} 44. Kf1 {[%emt 0:00:15]} Kh2 {[%emt 0:00:10] Strongly threatening ...f5.} 45. Bb4 {[%emt 0:00:52]} Bxd4 {[%emt 0:00:10]} 46. Bd6+ {[%emt 0:00:18]} Be5 {[%emt 0:00:36] Weighted Error Value: White=0.63/Black=0.02 (flawless)} 0-1